fUST/lending_fUST_20250915
["ID","MTS","AMOUNT","RATE_DAILY","PERIOD"]
[385492734,1757879441951,-2000.11227861,0.00022398,2]
[385492735,1757879441961,-420.0,0.00022418,2]
[385492737,1757879441970,-500.0,0.00022444,2]
[385492739,1757879441979,-480.0,0.00022465,3]
[385492741,1757879441989,-480.0,0.00022465,3]
[385492743,1757879441999,-480.0,0.00022465,3]
[385492745,1757879442008,-480.0,0.00022465,3]
[385492747,1757879442017,-549.94041091,0.00022465,3]
[385492749,1757879442027,-480.0,0.00022465,3]
[385492751,1757879442036,-383.11968004,0.00022465,3]
[385492753,1757879442045,-480.0,0.00022465,3]
[385492755,1757879442054,-480.0,0.00022465,3]
[385492757,1757879442064,-507.7,0.00022465,3]
[385492759,1757879442075,-480.0,0.00022465,3]
[385492761,1757879442084,-480.0,0.00022465,3]
[385492763,1757879442095,-836.92,0.00022465,3]
[385492765,1757879442105,-532.09,0.00022465,3]
[385492767,1757879442115,-480.0,0.00022465,3]
[385492769,1757879442124,-480.0,0.00022465,3]
[385492771,1757879442133,-480.0,0.00022465,3]
[385492773,1757879442142,-483.75,0.00022465,3]
[385492775,1757879442151,-490.43,0.00022465,3]
[385492777,1757879442160,-480.0,0.00022465,3]
[385492779,1757879442169,-947.18,0.00022465,3]
[385492781,1757879442178,-480.0,0.00022465,3]
[385492783,1757879442187,-480.0,0.00022465,3]
[385492785,1757879442196,-559.78,0.00022465,3]
[385492787,1757879442205,-480.0,0.00022465,3]
[385492789,1757879442215,-480.0,0.00022465,3]
[385492791,1757879442224,-480.0,0.00022465,3]
[385492793,1757879442233,-531.94,0.00022465,3]
[385492795,1757879442242,-256.94138163,0.00022465,3]
[385492797,1757879442252,-1046.34,0.00022465,3]
[385492799,1757879442261,-516.74,0.00022465,3]
[385492801,1757879442270,-480.0,0.00022465,3]
[385492803,1757879442279,-480.0,0.00022465,3]
[385492805,1757879442288,-530.61,0.00022465,3]
[385492807,1757879442297,-480.0,0.00022465,3]
[385492809,1757879442306,-480.0,0.00022465,3]
[385492811,1757879442317,-480.0,0.00022465,3]
[385492813,1757879442327,-2343.63,0.00022465,3]
[385492815,1757879442336,-480.0,0.00022465,3]
[385492817,1757879442345,-480.0,0.00022465,3]
[385492819,1757879442354,-480.0,0.00022465,3]
[385492821,1757879442364,-681.16,0.00022465,3]
[385492823,1757879442373,-630.7,0.00022465,3]
[385492825,1757879442382,-694.16,0.00022465,3]
[385492827,1757879442391,-480.0,0.00022465,3]
[385492829,1757879442401,-480.0,0.00022465,3]
[385492831,1757879442409,-511.98,0.00022465,3]
[385492833,1757879442419,-1560.55,0.00022465,3]
[385492835,1757879442428,-480.0,0.00022465,3]
[385492837,1757879442436,-3184.25,0.00022465,3]
[385492839,1757879442445,-480.0,0.00022465,3]
[385492841,1757879442455,-1634.17,0.00022465,3]
[385492843,1757879442464,-480.0,0.00022465,3]
[385492845,1757879442473,-480.0,0.00022465,3]
[385492847,1757879442482,-480.0,0.00022465,3]
[385492849,1757879442491,-691.84,0.00022465,3]
[385492851,1757879442500,-1630.32,0.00022465,3]
[385492853,1757879442509,-2347.85,0.00022465,3]
[385492855,1757879442518,-480.0,0.00022465,3]
[385492857,1757879442527,-1754.16,0.00022465,3]
[385492871,1757879442667,-480.0,0.00022465,3]
[385492872,1757879442677,-659.22,0.00022465,3]
[385492873,1757879442686,-549.82,0.00022465,3]
[385492874,1757879442695,-701.11,0.00022465,3]
[385492875,1757879442704,-480.0,0.00022465,3]
[385492876,1757879442714,-677.81,0.00022465,3]
[385492877,1757879442723,-618.61,0.00022465,3]
[385492878,1757879442732,-480.0,0.00022465,3]
[385492879,1757879442742,-300.0,0.00022465,2]
[385492880,1757879442752,-780.6,0.00022465,3]
[385492881,1757879442761,-1340.54,0.00022465,3]
[385492882,1757879442771,-480.0,0.00022465,3]
[385492883,1757879442781,-480.0,0.00022465,3]
[385492884,1757879442792,-13031.6,0.00022465,3]
[385492885,1757879442801,-611.79,0.00022465,3]
[385492886,1757879442810,-480.0,0.00022465,3]
[385492887,1757879442819,-480.0,0.00022465,3]
[385492888,1757879442829,-687.95,0.00022465,3]
[385492889,1757879442839,-480.0,0.00022465,3]
[385492890,1757879442849,-2376.91,0.00022465,3]
[385492891,1757879442862,-792.63,0.00022465,3]
[385492892,1757879442871,-668.26,0.00022465,3]
[385492894,1757879442881,-480.0,0.00022465,3]
[385492895,1757879442890,-616.81,0.00022465,3]
[385492897,1757879442899,-738.74,0.00022465,3]
[385492899,1757879442909,-480.0,0.00022465,3]
[385492901,1757879442918,-480.0,0.00022465,3]
[385492903,1757879442927,-594.0,0.00022465,3]
[385492905,1757879442936,-480.0,0.00022465,3]
[385492907,1757879442946,-557.26,0.00022465,3]
[385492909,1757879442955,-480.0,0.00022465,3]
[385492911,1757879442964,-480.0,0.00022465,3]
[385492913,1757879442975,-1102.49,0.00022465,3]
[385492915,1757879442984,-603.67929213,0.00022465,3]
[385492917,1757879442994,-889.54,0.00022465,3]
[385492919,1757879443004,-480.0,0.00022465,3]
[385492921,1757879443013,-1411.18,0.00022465,3]
[385492923,1757879443023,-480.0,0.00022465,3]
[385492925,1757879443032,-1618.31,0.00022465,3]
[385492927,1757879443041,-1383.09,0.00022465,3]
[385492929,1757879443050,-1619.26,0.00022465,3]
[385492931,1757879443060,-649.46,0.00022465,3]
[385492933,1757879443069,-480.0,0.00022465,3]
[385492935,1757879443078,-480.0,0.00022465,3]
[385492937,1757879443087,-685.6,0.00022465,3]
[385492939,1757879443097,-842.53,0.00022465,3]
[385492941,1757879443106,-480.0,0.00022465,3]
[385492943,1757879443115,-480.0,0.00022465,3]
[385492945,1757879443124,-480.0,0.00022465,3]
[385492947,1757879443133,-480.0,0.00022465,3]
[385492949,1757879443143,-869.48,0.00022465,3]
[385492951,1757879443153,-3811.83,0.00022465,3]
[385492953,1757879443162,-756.81932494,0.00022465,3]
[385492956,1757879443179,-7207.05067506,0.00022465,3]
[385492958,1757879443188,-1134.33,0.00022465,3]
[385492960,1757879443197,-480.0,0.00022465,3]
[385492962,1757879443206,-480.0,0.00022465,3]
[385492964,1757879443216,-4181.27,0.00022465,3]
[385492966,1757879443225,-480.0,0.00022465,3]
[385492968,1757879443234,-480.0,0.00022465,3]
[385492970,1757879443243,-1291.99,0.00022465,3]
[385492973,1757879443252,-331.49788073,0.00022476,2]
[385492975,1757879443261,-1845.2,0.000225,3]
[385492977,1757879443270,-922.6,0.000225,3]
[385492979,1757879443279,-461.3,0.000225,3]
[385492981,1757879443288,-501.2573663,0.00022516,2]
[385492983,1757879443297,-501.23191424,0.00022521,2]
[385492985,1757879443306,-1000.0,0.00022521,2]
[385492987,1757879443317,-1021.33749465,0.00022521,2]
[385492989,1757879443326,-1000.0,0.00022521,2]
[385492991,1757879443335,-1000.0,0.00022521,2]
[385492993,1757879443344,-1000.0,0.00022521,2]
[385492995,1757879443353,-1000.0,0.00022521,2]
[385492997,1757879443362,-1000.0,0.00022521,2]
[385492999,1757879443371,-1000.0,0.00022521,2]
[385493001,1757879443380,-1000.0,0.00022521,2]
[385493002,1757879443391,-1000.0,0.00022521,2]
[385493004,1757879443401,-201.84366764,0.00022521,2]
[385493007,1757879443410,-216.2,0.00022577,2]
[385493009,1757879443420,-2696.0,0.00022631,2]
[385493011,1757879443429,-976.0,0.00022631,2]
[385493012,1757879443439,-2156.0,0.00022631,2]
[385493014,1757879443449,-634.0,0.00022631,2]
[385493016,1757879443458,-150.0,0.00022631,2]
[385493018,1757879443467,-1000.0,0.00022645,2]
[385493020,1757879443478,-1000.0,0.00022645,2]
[385493022,1757879443489,-5155.66251622,0.00022701,2]
[385493024,1757879443500,-171.26089994,0.00022739,3]
[385493026,1757879443510,-480.0,0.00022739,3]
[385493028,1757879443519,-480.0,0.00022739,3]
[385493031,1757879443529,-480.0,0.00022739,3]
[385493033,1757879443538,-480.0,0.00022739,3]
[385493035,1757879443547,-480.0,0.00022739,3]
[385493037,1757879443556,-480.0,0.00022739,3]
[385493039,1757879443565,-507.7,0.00022739,3]
[385493040,1757879443574,-480.0,0.00022739,3]
[385493042,1757879443585,-480.0,0.00022739,3]
[385493045,1757879443595,-836.92,0.00022739,3]
[385493046,1757879443605,-532.09,0.00022739,3]
[385493049,1757879443615,-480.0,0.00022739,3]
[385493050,1757879443625,-480.0,0.00022739,3]
[385493052,1757879443635,-480.0,0.00022739,3]
[385493054,1757879443646,-483.75,0.00022739,3]
[385493057,1757879443655,-490.43,0.00022739,3]
[385493059,1757879443664,-480.0,0.00022739,3]
[385493060,1757879443674,-947.18,0.00022739,3]
[385493062,1757879443684,-480.0,0.00022739,3]
[385493065,1757879443693,-480.0,0.00022739,3]
[385493066,1757879443703,-559.78,0.00022739,3]
[385493069,1757879443714,-480.0,0.00022739,3]
[385493070,1757879443723,-480.0,0.00022739,3]
[385493072,1757879443732,-480.0,0.00022739,3]
[385493074,1757879443741,-531.94,0.00022739,3]
[385493076,1757879443750,-1046.34,0.00022739,3]
[385493078,1757879443760,-516.74,0.00022739,3]
[385493080,1757879443769,-480.0,0.00022739,3]
[385493082,1757879443778,-480.0,0.00022739,3]
[385493084,1757879443787,-530.61,0.00022739,3]
[385493086,1757879443796,-480.0,0.00022739,3]
[385493088,1757879443805,-480.0,0.00022739,3]
[385493090,1757879443814,-480.0,0.00022739,3]
[385493092,1757879443823,-2343.63,0.00022739,3]
[385493095,1757879443833,-480.0,0.00022739,3]
[385493097,1757879443842,-480.0,0.00022739,3]
[385493100,1757879443854,-480.0,0.00022739,3]
[385493103,1757879443863,-681.16,0.00022739,3]
[385493106,1757879443873,-630.7,0.00022739,3]
[385493108,1757879443882,-694.16,0.00022739,3]
[385493110,1757879443891,-480.0,0.00022739,3]
[385493112,1757879443900,-480.0,0.00022739,3]
[385493113,1757879443909,-511.98,0.00022739,3]
[385493115,1757879443918,-1560.55,0.00022739,3]
[385493117,1757879443931,-480.0,0.00022739,3]
[385493120,1757879443940,-3184.25,0.00022739,3]
[385493122,1757879443950,-480.0,0.00022739,3]
[385493124,1757879443959,-1634.17,0.00022739,3]
[385493126,1757879443969,-480.0,0.00022739,3]
[385493128,1757879443979,-480.0,0.00022739,3]
[385493130,1757879443988,-480.0,0.00022739,3]
[385493132,1757879443997,-691.84,0.00022739,3]
[385493134,1757879444007,-1630.32,0.00022739,3]
[385493136,1757879444016,-2347.85,0.00022739,3]
[385493138,1757879444025,-480.0,0.00022739,3]
[385493140,1757879444034,-1754.16,0.00022739,3]
[385493142,1757879444044,-480.0,0.00022739,3]
[385493144,1757879444053,-659.22,0.00022739,3]
[385493146,1757879444062,-549.82,0.00022739,3]
[385493148,1757879444071,-701.11,0.00022739,3]
[385493149,1757879444079,-480.0,0.00022739,3]
[385493152,1757879444089,-677.81,0.00022739,3]
[385493154,1757879444098,-618.61,0.00022739,3]
[385493156,1757879444107,-480.0,0.00022739,3]
[385493158,1757879444117,-300.0,0.00022739,2]
[385493160,1757879444126,-780.6,0.00022739,3]
[385493162,1757879444137,-1340.54,0.00022739,3]
[385493164,1757879444146,-480.0,0.00022739,3]
[385493166,1757879444155,-480.0,0.00022739,3]
[385493168,1757879444164,-7433.37044882,0.00022739,3]
[385493170,1757879444176,-2309.40719997,0.00022739,3]
[385493172,1757879444187,-1181.34538107,0.00022739,3]
[385493174,1757879444198,-2107.47697014,0.00022739,3]
[385493176,1757879444207,-611.79,0.00022739,3]
[385493178,1757879444217,-480.0,0.00022739,3]
[385493180,1757879444227,-480.0,0.00022739,3]
[385493182,1757879444236,-687.95,0.00022739,3]
[385493184,1757879444245,-480.0,0.00022739,3]
[385493186,1757879444254,-404.84199757,0.00022739,3]
[385493189,1757879444265,-1972.06800243,0.00022739,3]
[385493191,1757879444274,-792.63,0.00022739,3]
[385493193,1757879444283,-668.26,0.00022739,3]
[385493195,1757879444292,-480.0,0.00022739,3]
[385493197,1757879444301,-616.81,0.00022739,3]
[385493199,1757879444309,-731.34002386,0.00022739,3]
[385493201,1757879444321,-7.39997614,0.00022739,3]
[385493203,1757879444330,-480.0,0.00022739,3]
[385493205,1757879444339,-480.0,0.00022739,3]
[385493207,1757879444348,-594.0,0.00022739,3]
[385493209,1757879444357,-480.0,0.00022739,3]
[385493211,1757879444366,-557.26,0.00022739,3]
[385493213,1757879444375,-480.0,0.00022739,3]
[385493215,1757879444385,-480.0,0.00022739,3]
[385493217,1757879444394,-1102.49,0.00022739,3]
[385493219,1757879444404,-889.54,0.00022739,3]
[385493221,1757879444413,-480.0,0.00022739,3]
[385493223,1757879444423,-1411.18,0.00022739,3]
[385493225,1757879444432,-480.0,0.00022739,3]
[385493226,1757879444441,-204.85019124,0.00022739,3]
[385493249,1757879444671,-641.758934,0.00020915,2]
[385493250,1757879444685,-1413.45980876,0.00022739,3]
[385493251,1757879444695,-252.28125723,0.00022739,3]
[385493256,1757879444728,-1130.80874277,0.00022739,3]
[385493258,1757879444737,-1619.26,0.00022739,3]
[385493260,1757879444746,-649.46,0.00022739,3]
[385493262,1757879444756,-480.0,0.00022739,3]
[385493264,1757879444765,-480.0,0.00022739,3]
[385493266,1757879444775,-261.05133732,0.00022739,3]
[385493291,1757879445004,-424.54866268,0.00022739,3]
[385493293,1757879445014,-69.76866202,0.00022739,3]
[385493472,1757879446688,-878.86,0.00021917,2]
[385493474,1757879446697,-667.36064083,0.00022191,3]
[385493505,1757879446965,-211.49935917,0.00022191,3]
[385493507,1757879446974,-878.86,0.00022465,3]
[385493509,1757879446983,-196.25064353,0.00022739,3]
[385493511,1757879446994,-271.8,0.00022739,3]
[385493513,1757879447005,-304.71069445,0.00022739,3]
[385493515,1757879447014,-480.0,0.00022739,3]
[385493517,1757879447023,-480.0,0.00022739,3]
[385493519,1757879447032,-129.50395166,0.00022739,3]
[385497359,1757879507778,2202.19413038,0.000199,2]
[385497360,1757879688056,2128.78765929,0.000199,2]
[385497367,1757879869038,2057.82807056,0.000199,2]
[385497370,1757880050243,1989.23380158,0.000199,2]
[385497371,1757880075244,151.0,0.0002015,2]
[385497375,1757880234298,1470.96633819,0.000199,2]
[385497376,1757880234324,451.95967012,0.000199,2]
[385497379,1757880415283,1858.82847469,0.000199,2]
[385497387,1757880608332,1780.20085878,0.000199,2]
[385497420,1757880631795,-449.87064272,0.00021149,2]
[385497424,1757880631806,-844.73757371,0.00021149,2]
[385497427,1757880631818,-485.59264224,0.00021149,2]
[385497430,1757880631827,-151.2,0.00021545,2]
[385497433,1757880631837,-151.2,0.00021803,2]
[385497436,1757880631846,-194.31853431,0.00021815,2]
[385497439,1757880631855,-185.27185661,0.00021817,2]
[385497441,1757880631864,-300.0,0.00021906,2]
[385497443,1757880631873,-300.0,0.00021906,2]
[385497445,1757880631882,-1200.0,0.00021906,2]
[385497447,1757880631892,-417.15472785,0.00021907,10]
[385497448,1757880631901,-3551.04,0.00021907,10]
[385497450,1757880631910,-160.0,0.00021907,10]
[385497453,1757880631919,-50000.0,0.00021907,2]
[385497456,1757880631929,-217.77739939,0.00021915,2]
[385497458,1757880631938,-847.27885267,0.00021915,2]
[385497462,1757880631947,-160.0,0.00021916,2]
[385497465,1757880631957,-500.0,0.00021916,2]
[385497470,1757880631968,-191.95091987,0.00021916,2]
[385497473,1757880631977,-224.05243458,0.00021916,2]
[385497477,1757880631986,-500.0,0.00021916,2]
[385497480,1757880631996,-480.0,0.00021917,2]
[385497482,1757880632005,-480.0,0.00021917,2]
[385497483,1757880632014,-480.0,0.00021917,2]
[385497484,1757880632023,-480.0,0.00021917,2]
[385497485,1757880632032,-480.0,0.00021917,2]
[385497486,1757880632041,-480.0,0.00021917,2]
[385497487,1757880632051,-480.0,0.00021917,2]
[385497488,1757880632060,-480.0,0.00021917,2]
[385497489,1757880632069,-480.0,0.00021917,2]
[385497490,1757880632078,-480.0,0.00021917,2]
[385497491,1757880632087,-480.0,0.00021917,2]
[385497492,1757880632096,-480.0,0.00021917,2]
[385497493,1757880632106,-480.0,0.00021917,2]
[385497494,1757880632115,-480.0,0.00021917,2]
[385497495,1757880632125,-480.0,0.00021917,2]
[385497496,1757880632134,-480.0,0.00021917,2]
[385497497,1757880632144,-776.79,0.00021917,2]
[385497498,1757880632153,-480.0,0.00021917,2]
[385497499,1757880632162,-480.0,0.00021917,2]
[385497500,1757880632172,-480.0,0.00021917,2]
[385497501,1757880632181,-480.0,0.00021917,2]
[385497502,1757880632190,-480.0,0.00021917,2]
[385497503,1757880632200,-574.94,0.00021917,2]
[385497504,1757880632210,-480.0,0.00021917,2]
[385497505,1757880632219,-480.0,0.00021917,2]
[385497506,1757880632228,-866.99,0.00021917,2]
[385497507,1757880632238,-480.0,0.00021917,2]
[385497508,1757880632247,-480.0,0.00021917,2]
[385497509,1757880632256,-480.0,0.00021917,2]
[385497510,1757880632266,-480.0,0.00021917,2]
[385497511,1757880632275,-489.06,0.00021917,2]
[385497512,1757880632288,-480.0,0.00021917,2]
[385497513,1757880632297,-480.0,0.00021917,2]
[385497514,1757880632306,-480.0,0.00021917,2]
[385497515,1757880632316,-488.18,0.00021917,2]
[385497516,1757880632327,-693.55,0.00021917,2]
[385497517,1757880632336,-957.76,0.00021917,2]
[385497518,1757880632346,-480.0,0.00021917,2]
[385497519,1757880632355,-480.0,0.00021917,2]
[385497520,1757880632365,-1348.59,0.00021917,2]
[385497521,1757880632374,-1234.79,0.00021917,2]
[385497522,1757880632383,-3494.18,0.00021917,2]
[385497523,1757880632392,-480.0,0.00021917,2]
[385497524,1757880632401,-633.82,0.00021917,2]
[385497525,1757880632411,-1940.82,0.00021917,2]
[385497526,1757880632421,-480.0,0.00021917,2]
[385497527,1757880632430,-702.1,0.00021917,2]
[385497528,1757880632439,-722.72,0.00021917,2]
[385497529,1757880632448,-480.0,0.00021917,2]
[385497530,1757880632457,-480.0,0.00021917,2]
[385497531,1757880632467,-480.0,0.00021917,2]
[385497532,1757880632476,-567.64,0.00021917,2]
[385497533,1757880632485,-480.0,0.00021917,2]
[385497534,1757880632495,-797.02,0.00021917,2]
[385497535,1757880632505,-576.54,0.00021917,2]
[385497536,1757880632514,-480.0,0.00021917,2]
[385497537,1757880632523,-480.0,0.00021917,2]
[385497538,1757880632532,-992.53,0.00021917,2]
[385497539,1757880632542,-480.0,0.00021917,2]
[385497540,1757880632551,-6999.92,0.00021917,2]
[385497541,1757880632560,-1514.07,0.00021917,2]
[385497542,1757880632569,-3658.61,0.00021917,2]
[385497543,1757880632579,-643.14,0.00021917,2]
[385497544,1757880632588,-1625.23,0.00021917,2]
[385497545,1757880632598,-480.0,0.00021917,2]
[385497546,1757880632607,-480.0,0.00021917,2]
[385497547,1757880632616,-292.72583032,0.00021917,2]
[385497548,1757880632626,-1365.48,0.00021917,2]
[385497549,1757880632635,-480.0,0.00021917,2]
[385497550,1757880632644,-1130.5,0.00021917,2]
[385497551,1757880632653,-2171.07,0.00021917,2]
[385497552,1757880632662,-1426.53,0.00021917,2]
[385497553,1757880632672,-480.0,0.00021917,2]
[385497554,1757880632681,-507.02,0.00021917,2]
[385497555,1757880632690,-480.0,0.00021917,2]
[385497556,1757880632699,-480.0,0.00021917,2]
[385497557,1757880632708,-480.0,0.00021917,2]
[385497558,1757880632718,-480.0,0.00021917,2]
[385497559,1757880632727,-480.0,0.00021917,2]
[385497560,1757880632737,-480.0,0.00021917,2]
[385497561,1757880632747,-649.58,0.00021917,2]
[385497562,1757880632756,-480.0,0.00021917,2]
[385497563,1757880632765,-480.0,0.00021917,2]
[385497564,1757880632775,-2786.22,0.00021917,2]
[385497565,1757880632785,-480.0,0.00021917,2]
[385497566,1757880632795,-683.03,0.00021917,2]
[385497567,1757880632805,-498.31,0.00021917,2]
[385497568,1757880632814,-487.6,0.00021917,2]
[385497569,1757880632823,-576.81,0.00021917,2]
[385497570,1757880632833,-778.35,0.00021917,2]
[385497571,1757880632842,-1239.31,0.00021917,2]
[385497572,1757880632851,-480.0,0.00021917,2]
[385497573,1757880632860,-2079.8,0.00021917,2]
[385497574,1757880632870,-480.0,0.00021917,2]
[385497575,1757880632880,-535.32,0.00021917,2]
[385497576,1757880632890,-1416.85,0.00021917,2]
[385497577,1757880632899,-646.4,0.00021917,2]
[385497578,1757880632908,-480.0,0.00021917,2]
[385497579,1757880632917,-480.0,0.00021917,2]
[385497580,1757880632926,-593.08,0.00021917,2]
[385497581,1757880632936,-480.0,0.00021917,2]
[385497582,1757880632945,-480.0,0.00021917,2]
[385497583,1757880632955,-964.68,0.00021917,2]
[385497584,1757880632963,-1210.2,0.00021917,2]
[385497585,1757880632973,-584.73,0.00021917,2]
[385497586,1757880632982,-568.28,0.00021917,2]
[385497587,1757880632991,-601.95,0.00021917,2]
[385497588,1757880632999,-603.67929213,0.00021917,2]
[385497589,1757880633008,-300.0,0.00021917,2]
[385497590,1757880633017,-519.75,0.00021917,2]
[385497591,1757880633027,-480.0,0.00021917,2]
[385497592,1757880633036,-480.0,0.00021917,2]
[385497593,1757880633046,-480.0,0.00021917,2]
[385497594,1757880633055,-480.0,0.00021917,2]
[385497595,1757880633064,-11402.65,0.00021917,2]
[385497596,1757880633074,-480.0,0.00021917,2]
[385497597,1757880633083,-539.71,0.00021917,2]
[385497598,1757880633093,-500.0,0.00021973,2]
[385497599,1757880633102,-430.66,0.00022,2]
[385497600,1757880633112,-151.2,0.00022061,2]
[385497601,1757880633121,-500.0,0.00022173,2]
[385497602,1757880633131,-500.0,0.00022173,2]
[385497603,1757880633140,-480.0,0.00022191,3]
[385497604,1757880633150,-480.0,0.00022191,3]
[385497605,1757880633159,-480.0,0.00022191,3]
[385497606,1757880633168,-480.0,0.00022191,3]
[385497607,1757880633178,-480.0,0.00022191,3]
[385497608,1757880633188,-480.0,0.00022191,3]
[385497609,1757880633197,-480.0,0.00022191,3]
[385497610,1757880633206,-480.0,0.00022191,3]
[385497611,1757880633215,-480.0,0.00022191,3]
[385497612,1757880633224,-480.0,0.00022191,3]
[385497613,1757880633233,-480.0,0.00022191,3]
[385497614,1757880633243,-480.0,0.00022191,3]
[385497615,1757880633252,-480.0,0.00022191,3]
[385497616,1757880633261,-480.0,0.00022191,3]
[385497617,1757880633271,-480.0,0.00022191,3]
[385497618,1757880633283,-480.0,0.00022191,3]
[385497619,1757880633293,-776.79,0.00022191,3]
[385497620,1757880633302,-480.0,0.00022191,3]
[385497621,1757880633312,-480.0,0.00022191,3]
[385497622,1757880633321,-480.0,0.00022191,3]
[385497623,1757880633330,-480.0,0.00022191,3]
[385497624,1757880633339,-480.0,0.00022191,3]
[385497625,1757880633349,-574.94,0.00022191,3]
[385497626,1757880633373,-480.0,0.00022191,3]
[385497627,1757880633395,-480.0,0.00022191,3]
[385497628,1757880633406,-866.99,0.00022191,3]
[385497629,1757880633415,-480.0,0.00022191,3]
[385497630,1757880633425,-480.0,0.00022191,3]
[385497631,1757880633435,-480.0,0.00022191,3]
[385497632,1757880633444,-480.0,0.00022191,3]
[385497633,1757880633453,-489.06,0.00022191,3]
[385497634,1757880633463,-480.0,0.00022191,3]
[385497635,1757880633471,-480.0,0.00022191,3]
[385497636,1757880633481,-480.0,0.00022191,3]
[385497637,1757880633491,-488.18,0.00022191,3]
[385497638,1757880633500,-693.55,0.00022191,3]
[385497639,1757880633509,-957.76,0.00022191,3]
[385497640,1757880633518,-480.0,0.00022191,3]
[385497641,1757880633527,-480.0,0.00022191,3]
[385497642,1757880633537,-1348.59,0.00022191,3]
[385497643,1757880633546,-1234.79,0.00022191,3]
[385497644,1757880633555,-3494.18,0.00022191,3]
[385497645,1757880633565,-480.0,0.00022191,3]
[385497646,1757880633574,-633.82,0.00022191,3]
[385497647,1757880633584,-1940.82,0.00022191,3]
[385497648,1757880633593,-480.0,0.00022191,3]
[385497649,1757880633603,-702.1,0.00022191,3]
[385497650,1757880633612,-722.72,0.00022191,3]
[385497651,1757880633622,-480.0,0.00022191,3]
[385497652,1757880633631,-480.0,0.00022191,3]
[385497653,1757880633640,-480.0,0.00022191,3]
[385497654,1757880633650,-567.64,0.00022191,3]
[385497655,1757880633659,-480.0,0.00022191,3]
[385497656,1757880633668,-797.02,0.00022191,3]
[385497657,1757880633677,-576.54,0.00022191,3]
[385497658,1757880633686,-480.0,0.00022191,3]
[385497659,1757880633695,-480.0,0.00022191,3]
[385497660,1757880633705,-992.53,0.00022191,3]
[385497661,1757880633714,-480.0,0.00022191,3]
[385497662,1757880633723,-6999.92,0.00022191,3]
[385497663,1757880633733,-1514.07,0.00022191,3]
[385497664,1757880633742,-3658.61,0.00022191,3]
[385497665,1757880633751,-643.14,0.00022191,3]
[385497666,1757880633761,-1625.23,0.00022191,3]
[385497667,1757880633770,-480.0,0.00022191,3]
[385497668,1757880633780,-480.0,0.00022191,3]
[385497669,1757880633789,-1365.48,0.00022191,3]
[385497670,1757880633798,-480.0,0.00022191,3]
[385497671,1757880633808,-1130.5,0.00022191,3]
[385497672,1757880633817,-2171.07,0.00022191,3]
[385497673,1757880633826,-1426.53,0.00022191,3]
[385497674,1757880633836,-480.0,0.00022191,3]
[385497675,1757880633846,-507.02,0.00022191,3]
[385497676,1757880633855,-480.0,0.00022191,3]
[385497677,1757880633869,-480.0,0.00022191,3]
[385497678,1757880633879,-480.0,0.00022191,3]
[385497679,1757880633888,-480.0,0.00022191,3]